Cogmind - Beta 15 @@@ ROGUE MODE // 2025.09.24 @ 16:13:34 Player: glorp Result: Self-destructed Performance ------------- Evolutions (1) 500 Regions Visited (4) 800 Robots Destroyed (93) 465 Value Destroyed (2583) 2583 Prototype IDs (1) 20 Alien Tech Used (0) 0 Bonus (308) 308 TOTAL SCORE: 4676 Bonus ------- High Alert Combat Kills 101 Follower Combat Kills 7 Entered Garrisons 200 Cogmind --------- Core Integrity 13/400 Matter 144/300 Energy 125/125 System Corruption 0% Temperature Cool (0) Movement Walking (190) Ox1 Location -9/Garrison Parts ------- > --- POWER (1) -------- Light Ion Engine > --- PROPULSION (4) --- Aluminum Leg Aluminum Leg Aluminum Leg > --- UTILITY (2) ------ Large Storage Unit > --- WEAPON (2) ------- Ion Cannon Ion Cannon > --- INVENTORY (15) --- Light Ion Engine Improved Ion Engine Aluminum Leg Aluminum Leg Aluminum Leg Aluminum Leg Carbon-fiber Leg Small Laser Flak Cannon Flak Cannon Datajack Peak State ------------ > --- POWER ------------ Heavy Ion Engine > --- PROPULSION ------- Aluminum Leg Carbon-fiber Leg Carbon-fiber Leg Carbon-fiber Leg > --- UTILITY ---------- Large Storage Unit Remote Shield > --- WEAPON ----------- Flak Cannon Flak Cannon > --- INVENTORY -------- Ion Engine Light Ion Engine Improved Ion Engine Aluminum Leg Aluminum Leg Aluminum Leg Aluminum Leg Small Laser Ion Cannon Ion Cannon Flak Cannon Flak Cannon Grenade Launcher Rocket Launcher Datajack [Rating: 27] Favorites ----------- Power Ion Engine Engine Ion Engine Power Core Light Nuclear Core Propulsion Carbon-fiber Leg Leg Carbon-fiber Leg Utility Large Storage Unit Device Structural Scanner Storage Large Storage Unit Protection Light Armor Plating Weapon Flak Cannon Energy Gun Medium Laser Energy Cannon Ion Cannon Ballistic Gun Light Assault Rifle Ballistic Cannon Flak Cannon Launcher Rocket Launcher Build | -11 -10 -9 -9 -9 ------- Run | Yrd Mat Mat Sto Gar Slots Evolved 2 | . . 2 . . Power . | . . . . . Propulsion 2 | . . 2 . . Utility . | . . . . . Weapon . | . . . . . Parts Attached 54 | 6 11 19 12 6 Power 10 | 1 1 2 3 3 Engine 9 | 1 1 2 2 3 Core 1 | . . . 1 . Reactor . | . . . . . Propulsion 20 | 2 2 8 6 2 Treads . | . . . . . Leg 20 | 2 2 8 6 2 Wheel . | . . . . . Hover . | . . . . . Flight . | . . . . . Utility 9 | 1 3 2 2 1 Device 2 | . 1 . 1 . Storage 2 | 1 1 . . . Processor . | . . . . . Hackware . | . . . . . Protection 5 | . 1 2 1 1 Artifact . | . . . . . Weapon 15 | 2 5 7 1 . Energy Gun 4 | 1 3 . . . Energy Cannon 2 | . . 2 . . Ballistic Gun 3 | 1 2 . . . Ballistic Cannon 4 | . . 3 1 . Launcher 2 | . . 2 . . Special Weapon . | . . . . . Impact Weapon . | . . . . . Slashing Weapon . | . . . . . Piercing Weapon . | . . . . . Special Melee Weapon . | . . . . . Unidentified Prototypes 1 | . . 1 . . Parts Lost 24 | . 7 2 7 8 Power 3 | . 1 . . 2 Propulsion 12 | . 2 1 5 4 Utility 4 | . 1 1 1 1 Weapon 5 | . 3 . 1 1 Highest Loss Streak 6 | . 4 1 6 5 To Critical Strikes . | . . . . . Average Backups 12 | 1 7 14 14 13 Power 2 | . 1 2 2 2 Propulsion 3 | . 2 3 4 5 Utility . | . . . . . Weapon 5 | . 2 7 6 4 Tool/Special . | . . . . . Unused Backups 9 | . 4 . 1 4 Power 1 | . . . 1 . Propulsion 7 | . 4 . . 3 Utility . | . . . . . Weapon . | . . . . . Tool/Special 1 | . . . . 1 Average Slot Usage (%) 91 | . 84 94 95 87 Engine 10 | . 13 11 8 8 Leg 39 | . 27 42 43 41 Device 1 | . 1 2 . . Storage 11 | . 14 11 11 11 Protection 4 | . . 5 7 4 Energy Gun 2 | . 13 . . . Energy Cannon 1 | . . . . 8 Ballistic Gun 2 | . 12 . . . Ballistic Cannon 13 | . . 19 22 4 Launcher 1 | . . 1 . 7 Peak Build Rating 27 | 6 8 24 27 22 Average Rating 16 | 4 6 19 22 16 On Entrance 11 | . 6 8 23 22 Naked Turns . | . . . . . Heaviest Build 45 | 13 34 44 45 37 Greatest Support 60 | 20 20 60 60 55 Greatest Overweight (x) 1 | 1 1 1 1 1 Average Overweight (x) . | . . . . . Largest Inventory Capacity 15 | 8 15 15 15 15 Average Capacity 13 | 7 10 15 15 15 Most Carried 15 | 6 11 15 15 15 Average Carried 12 | 1 7 14 14 13 Final Capacity 15 | 8 15 15 15 15 Final Carried 15 | 6 11 15 15 11 Class Distribution -------------------- 62% | Mutant 37% | Scavenger-Mutant Dominant Class ---------------- Mutant | -10/Materials Mutant | -9/Materials Mutant | -9/Storage Scavenger-Mutant | -9/Garrison Resources | -11 -10 -9 -9 -9 ----------- Run | Yrd Mat Mat Sto Gar Matter Collected 2332 | 182 219 1010 628 293 Remotely . | . . . . . Salvage Created 1968 | . 336 753 587 292 Parts 152 | . 21 55 46 30 Haulers Intercepted . | . . . . . Recyclers Shooed 1 | . . 1 . . Parts Field Recycled . | . . . . . Retrieved Matter . | . . . . . Parts Self-Destructed . | . . . . . Prevented . | . . . . . Kills | -11 -10 -9 -9 -9 ------- Run | Yrd Mat Mat Sto Gar Combat Hostiles Destroyed 82 | . 10 30 21 21 Guns 10 | . 10 . . . Cannons 52 | . . 24 21 7 AOE 19 | . . 6 . 13 Classes Destroyed 10 | . 2 5 3 . Worker 1 | . . 1 . . Builder 2 | . . 1 1 . Recycler 1 | . . 1 . . Mechanic 1 | . . . 1 . Watcher 5 | . . 4 1 . Swarmer 25 | . 3 7 3 12 Grunt 42 | . 7 18 12 5 Brawler 1 | . . . 1 . Protector 1 | . . . 1 . Sentry 14 | . . 5 4 5 Best Kill Streak 8 | . 3 5 8 5 Combat Bots Only 8 | . 3 5 8 5 Max Kills in Single Turn 3 | . 1 3 1 3 Gunslinging . | . . . . . Exploded 3 | . . 1 . 3 Melee . | . . . . . Uniques/NPCs Destroyed . | . . . . . Combat | -11 -10 -9 -9 -9 -------- Run | Yrd Mat Mat Sto Gar Hostile Shots Fired 421 | . 98 120 109 94 Missed 117 | . 17 41 36 23 Hits 304 | . 81 79 73 71 Projectile 304 | . 81 79 73 71 Critical Strikes 9 | . 3 3 1 2 Damage Taken 3646 | . 914 953 824 955 Core 512 | . 125 204 86 97 Absorbed by Shields 55 | . . . 55 . Regen/Repaired (Parts) 98 | . . 98 . . Core Remaining (%) 75 | 100 50 . . . Volleys Fired 203 | . 48 64 49 42 Largest 2 | . 2 2 2 2 Hottest 120 | . 85 74 74 120 Shots Fired 346 | . 67 122 97 60 Gun 67 | . 67 . . . Cannon 248 | . . 110 97 41 Launcher 31 | . . 12 . 19 Special . | . . . . . Kinetic 272 | . 47 110 97 18 Thermal 43 | . 20 . . 23 Explosive 31 | . . 12 . 19 Electromagnetic . | . . . . . Robot Hit Streak 12 | . 11 8 8 12 Robot Miss Streak 13 | . 2 13 10 5 Penetration Max . | . . . . . Secondary Targets 3 | . 3 . . . Max Gunslinging Chain 1 | . 1 . . . Shots Hit Robots 277 | . 50 102 81 44 Core Hits 241 | . 23 99 73 46 Critical Kills . | . . . . . Critical Parts Destroyed . | . . . . . Critical Strikes . | . . . . . Melee Attacks . | . . . . . Impact . | . . . . . Slashing . | . . . . . Piercing . | . . . . . Sneak Attacks . | . . . . . Combat Hostiles . | . . . . . Follow-up Attacks . | . . . . . Damage Inflicted 5444 | . 476 1991 1252 1725 Guns 472 | . 472 . . . Cannons 3223 | . . 1328 1241 654 Explosions 1729 | . . 663 . 1066 Melee . | . . . . . Ramming 20 | . 4 . 11 5 Kinetic 3115 | . 278 1328 1241 268 Thermal 580 | . 194 . . 386 Explosive 1729 | . . 663 . 1066 Electromagnetic . | . . . . . Impact . | . . . . . Slashing . | . . . . . Piercing . | . . . . . Highest Corruption . | . . . . . Average Corruption . | . . . . . Corruption Purged . | . . . . . Corruption Blocked . | . . . . . Overload Shots . | . . . . . Overflow Damage 94 | . . 67 . 27 Projectiles . | . . . . . Explosions 94 | . . 67 . 27 Melee . | . . . . . Knockbacks 87 | . . 46 36 5 Impact . | . . . . . Kinetic 82 | . . 44 34 4 Secondary 5 | . . 2 2 1 Self-Inflicted Damage 124 | . . 28 . 96 Shots 4 | . . 1 . 3 Rammed . | . . . . . Targets Rammed 7 | . 2 . 2 3 Kicked 7 | . 2 . 2 3 Crushed . | . . . . . Highest Temperature 233 | . 221 162 140 233 Average Temperature 52 | . 79 36 38 76 Received Heat Transfer 1550 | . 456 372 356 366 Siege Activations . | . . . . . Martial Activations . | . . . . . Shielding Activations . | . . . . . Robots Disrupted . | . . . . . Combat Hostiles . | . . . . . Robots Corrupted . | . . . . . Combat Hostiles . | . . . . . Parts Fried . | . . . . . Impact Corruptions . | . . . . . Robots Melted 1 | . . . . 1 Combat Hostiles 1 | . . . . 1 Parts Melted 1 | . . . . 1 Heat Transferred 1184 | . 555 . . 629 Parts Sabotaged . | . . . . . Parts Stolen . | . . . . . Parts Stripped . | . . . . . Power Chain Reactions . | . . . . . Alert | -11 -10 -9 -9 -9 ------- Run | Yrd Mat Mat Sto Gar Maximum Alert Level 3 | . . 1 1 3 Low Security (%) 47 | 100 100 30 71 . Level 1 36 | . . 69 28 15 Level 2 14 | . . . . 75 Level 3 1 | . . . . 9 Level 4 . | . . . . . Level 5 . | . . . . . High Security . | . . . . . Max Security . | . . . . . Peak Influence 743 | . 60 347 350 743 Initial 224 | . . 7 132 224 Average 231 | . 15 239 187 522 Influence Increases 2381 | . 267 865 610 639 Destroy 0b10 Robot/C 1640 | . 200 600 400 440 Destroy 0b10 Robot/NC 55 | . . 35 20 . Destroy Leader 290 | . 40 148 72 30 Allied During Kill 10 | . . . . 10 Successful Hack 27 | . 12 2 13 . Disable Machine 15 | . . . 15 . Destroy Structure 134 | . . 65 . 69 Partial Spotted 30 | . . . . 30 Lose Combat Pursuer 180 | . 15 15 90 60 Influence Decreases 1638 | . 248 569 579 242 Entered New Map 317 | . . 12 183 122 Time Decay 1011 | . 188 537 286 . Lost Part 230 | . 60 20 70 80 Lost Ally 80 | . . . 40 40 Squads Dispatched 9 | . 2 4 3 . Investigation 2 | . 1 1 . . Extermination . | . . . . . Reinforcement 4 | . 1 3 . . Assault 2 | . . . 2 . Garrison 1 | . . . 1 . Intercept . | . . . . . Searches Triggered . | . . . . . Construction Impeded 1 | . . 1 . . Haulers Reinforced . | . . . . . Active Scanning Responses . | . . . . . Cargo Convoy Interrupts . | . . . . . Stealth | -11 -10 -9 -9 -9 --------- Run | Yrd Mat Mat Sto Gar Distress Signals 5 | . . 3 2 . Communications Jammed . | . . . . . Distress Signals . | . . . . . Times Spotted 116 | . 19 38 37 22 Peak Tracking Total 11 | . 5 5 11 6 Tactical Retreats 8 | . 1 1 4 2 Traps | -11 -10 -9 -9 -9 ------- Run | Yrd Mat Mat Sto Gar Traps Triggered 3 | . 1 . 1 1 Indirectly . | . . . . . Trap Hack Attempts . | . . . . . Triggered . | . . . . . Disarmed . | . . . . . Reprogrammed . | . . . . . Reused . | . . . . . Traps Extracted . | . . . . . Installed . | . . . . . Triggered . | . . . . . Machines | -11 -10 -9 -9 -9 ---------- Run | Yrd Mat Mat Sto Gar Machines Disabled 1 | . . . 1 . Max in Single Turn . | . . . . . Machines Repaired . | . . . . . Machines Dismantled . | . . . . . Machines Sabotaged . | . . . . . Overloaded Fab Kills . | . . . . . Hacking | -11 -10 -9 -9 -9 --------- Run | Yrd Mat Mat Sto Gar Machines Accessed 7 | . 2 2 3 . Terminals 4 | . 2 1 1 . Fabricators . | . . . . . Repair Stations 1 | . . 1 . . Recycling Units 1 | . . . 1 . Scanalyzers . | . . . . . Garrison Access 1 | . . . 1 . Total Hacks 19 | . 7 7 5 . Successful 14 | . 4 5 5 . Failed 5 | . 3 2 . . Catastrophic . | . . . . . Database Lockouts . | . . . . . Manual 6 | . 5 . 1 . Terminals 11 | . 7 3 1 . Fabricators . | . . . . . Repair Stations 4 | . . 4 . . Recycling Units 3 | . . . 3 . Scanalyzers . | . . . . . Garrison Access 1 | . . . 1 . Terminal Hacks 6 | . 3 2 1 . Record 2 | . . 2 . . Level Access Points 1 | . . . 1 . Emergency Access Points 1 | . 1 . . . Terminal Index 1 | . 1 . . . Patrol Status 1 | . 1 . . . Fabricator Hacks . | . . . . . Repair Station Hacks 3 | . . 3 . . Scan Component 2 | . . 2 . . Repair 1 | . . 1 . . Recycling Unit Hacks 3 | . . . 3 . Retrieve Matter 3 | . . . 3 . Scanalyzer . | . . . . . Garrison Access Hacks 1 | . . . 1 . Unlock Access 1 | . . . 1 . Unauthorized Hacks 1 | . 1 . . . Terminals 1 | . 1 . . . Assimilate 1 | . 1 . . . Fabricators . | . . . . . Repair Stations . | . . . . . Recycling Units . | . . . . . Scanalyzers . | . . . . . Garrison Access . | . . . . . Data Cores Recovered . | . . . . . Used . | . . . . . Hacking Detections 5 | . 1 2 2 . Full Trace Events 3 | . 1 2 . . Feedback Events . | . . . . . Feedback Blocked . | . . . . . Robot Schematics Acquired . | . . . . . Robots Built . | . . . . . Authchips . | . . . . . Time . | . . . . . Total Robot Build Rating . | . . . . . Part Schematics Acquired . | . . . . . Parts Built . | . . . . . Authchips . | . . . . . Time . | . . . . . Total Part Build Rating . | . . . . . Parts Repaired 1 | . . 1 . . Time 38 | . . 38 . . Parts Recycled . | . . . . . Recycled Matter . | . . . . . Retrieved Matter . | . . . . . Retrieved Components . | . . . . . Parts Scanalyzed . | . . . . . Part Schematics Acquired . | . . . . . Parts Damaged . | . . . . . Bothacking | -11 -10 -9 -9 -9 ------------ Run | Yrd Mat Mat Sto Gar Used RIF Installer . | . . . . . Robots Hacked . | . . . . . Non-combat . | . . . . . Combat . | . . . . . Robot Hacks Applied . | . . . . . Relay Couplers Released . | . . . . . Fabnet Peak Effective % . | . . . . . Robots Rewired 3 | . . . . 3 Allies Hacked . | . . . . . Hacks Repelled . | . . . . . Allies | -11 -10 -9 -9 -9 -------- Run | Yrd Mat Mat Sto Gar Total Allies 5 | . . . 2 3 Largest Group 3 | . . . 2 3 Highest-Rated Group 62 | . . . 62 15 Highest-Rated Ally 31 | . . . 31 5 Total Orders . | . . . . . Ally Attacks 23 | . . . 8 15 Total Damage 212 | . . . 146 66 Kills 1 | . . . . 1 Allies Corrupted . | . . . . . Allies Melted . | . . . . . Intel | -11 -10 -9 -9 -9 ------- Run | Yrd Mat Mat Sto Gar Active Infowar (turns) 435 | . 104 331 . . Structural 435 | . 104 331 . . Robot Analysis Total . | . . . . . Derelict Logs Recovered . | . . . . . Drone Launches . | . . . . . Drone Recoveries . | . . . . . Exploration | -11 -10 -9 -9 -9 ------------- Run | Yrd Mat Mat Sto Gar Turns Passed 3713 | 141 712 1533 631 696 Spaces Moved 1909 | 86 372 777 360 314 Core 5 | 5 . . . . Treads . | . . . . . Legs 1904 | 81 372 777 360 314 Wheels . | . . . . . Hover . | . . . . . Flight . | . . . . . Fastest Speed 50 | 50 120 120 120 120 Average Speed 130 | 147 135 132 121 125 Slowest Speed 190 | 190 190 190 190 190 Overloaded Moves . | . . . . . Propulsion Burnouts . | . . . . . Robots Hopped . | . . . . . Potential Cave-ins . | . . . . . Cave-ins Triggered . | . . . . . Exploration Rate (%) 39 | 5 50 60 53 31 Regions Visited 4 Branch Regions 1 Pre-discovered Areas . | . . . . . Known Exits Taken 1 | . . . 1 . Unknown Exits Taken 3 | 1 1 1 . . Scrap Searched . | . . . . . Spaces Dug . | . . . . . Terrain Destroyed 128 | . . 73 . 55 Melee . | . . . . . Projectile 1 | . . . . 1 AOE 127 | . . 73 . 54 Terrain Rammed . | . . . . . Walls Destroyed . | . . . . . Machines Disabled . | . . . . . Actions | -11 -10 -9 -9 -9 --------- Run | Yrd Mat Mat Sto Gar Total 2800 | 97 524 1164 458 557 Wait 491 | . 72 272 20 127 Move 1905 | 85 371 776 359 314 Hop . | . . . . . Pick Up 26 | 6 9 7 3 1 Fast Attach 28 | 6 8 8 2 4 Attach 25 | . 5 7 5 8 Detach 18 | . 5 10 . 3 Swap 17 | . . 8 8 1 Drop 24 | . 4 12 5 3 Fire 203 | . 48 64 49 42 Melee . | . . . . . Ram . | . . . . . Kick 7 | . 2 . 2 3 Crush . | . . . . . Escape Stasis 5 | . . . 5 . Rewire 51 | . . . . 51 Trap . | . . . . . Miscellaneous . | . . . . . Route ------- -11/Scrapyard -10/Materials -9/Materials (discovered 4 exits: *Mat / [*Min x2] / *Sto) -9/Storage (discovered 2 exits: *Mat / Gar) -9/Garrison History --------- Turn | Location | Event 16 | -11/Scrapyard | Discovered new exit (range 16) 142 | -11/Scrapyard | Entered Materials 314 | -10/Materials | Build established: Mutant 506 | -10/Materials | Lost 4 parts (1n1u2w) 734 | -10/Materials | Discovered new exit (range 9) 854 | -10/Materials | Entered another Materials area 854 | -9/Materials | Evolved 2 slots: Propulsion x2 1093 | -9/Materials | Build established: Scavenger-Mutant 1387 | -9/Materials | Discovered new exit (range 15) 1543 | -9/Materials | Discovered new exit (range 4) 1647 | -9/Materials | Build established: Mutant 1683 | -9/Materials | Discovered new exit (range 4) 1789 | -9/Materials | Discovered new exit (range 14) 1852 | -9/Materials | Repaired Flak Cannon 2138 | -9/Materials | Core integrity fell below 50% 2387 | -9/Materials | Entered Storage 2703 | -9/Storage | Identified exit to Materials 2755 | -9/Storage | Met a pair of Derelict thieves 2903 | -9/Storage | Destroyed 8 combat bots 2915 | -9/Storage | Lost 6 parts (4n1u1w) 2964 | -9/Storage | Garrison activated, responded to threat 3017 | -9/Storage | Identified exit to Garrison 3018 | -9/Storage | Entered Garrison 3046 | -9/Garrison | Triggered checkpoint 3110 | -9/Garrison | Triggered checkpoint 3184 | -9/Garrison | Build established: Scavenger-Mutant 3308 | -9/Garrison | Triggered checkpoint 3338 | -9/Garrison | Core integrity fell below 20% 3358 | -9/Garrison | Lost 3 allies 3465 | -9/Garrison | Lost 5 parts (1p3n1u) 3646 | -9/Garrison | Triggered checkpoint 3714 | -9/Garrison | Self-destructed Last Messages --------------- 03704_ Attempting to rewire C-30 ARC. 03704_ C-30 ARC is unpowered. 03705_ Attempting to rewire C-30 ARC. 03705_ C-30 ARC is unpowered. 03706_ Attempting to rewire C-30 ARC. 03706_ C-30 ARC is unpowered. 03707_ Attempting to rewire C-30 ARC. 03707_ C-30 ARC is unpowered. 03708_ Attempting to rewire C-30 ARC. 03708_ C-30 ARC is unpowered. 03709_ Attempting to rewire C-30 ARC. 03709_ C-30 ARC is unpowered. 03710_ Attempting to rewire C-30 ARC. 03710_ C-30 ARC is unpowered. 03711_ Attempting to rewire C-30 ARC. 03711_ C-30 ARC is unpowered. 03712_ Attempting to rewire C-30 ARC. 03712_ C-30 ARC is unpowered. 03713_ Attempting to rewire C-30 ARC. 03713_ C-30 ARC is unpowered. Map ----- +----------------------------------------------------+ | ?????????????????????????????????????????????????? | | ?????????????????????????????????????????????????? | | ?????????????????????????????????????????????????? | | ?????????????????????????????????????????????????? | | ?????????????????????????????????????????????????? | | ?????????????????????????????????????????????????? | | ?????????????????????????????????????????????????? | | ?????????????????????????????????????????????????? | | ?????????????????????????????????????????????????? | | ?????????????????????????????????????????????????? | | ?????????????????????????????????????????????????? | | ?????????????????????????????????????????????????? | | ?????????????????????????????????????????????????? | | ?????????????????????????????????????????????????? | | ?????????????????????????????????????????????????? | | ?????????????????????????????????????????????????? | | ?????????????????????????????????????????????????? | | ?????????????????????????####????????????????????? | | ?????????????????????????# #????????????????????? | | ?????????????????????????# #????????????????????? | | ?????????????????????????# #????????????????????? | | ?????????????????????????# #????????????????????? | | ??????????????????????##?# #????????????????????? | | ??????????????????????#"## ###??????????????????? | | ??????????????????????#"C #??????????????????? | | ??????????????????????#"C@ #??????????????????? | | ??????????????????????#" #??????????????????? | | ??????????????????????#"##[ ###??????????????????? | | ??????????????????????###! =#????????????????????? | | ????????????# ######### =#######T###??????????? | | ????????????# % #??????????? | | ????????????# = #??????????? | | ????????????########### ## ######## #??????????? | | ??????????????????????##?# #??????? #??????????? | | ?????????????????????????# #??????# #??????????? | | ?????????????????????????# #??????# #??????????? | | ?????????????????????????# #??????# #??????????? | | ?????????????????????????# #??????# #??????????? | | ?????????????????????????# #??????# #??????????? | | ?????????????????????????# #?????## ##""""###### | | ?????????????????????????# ####### | | ?????????????????????????# | | ?????????????????????????# | | ?????????????????????????########## ## #? # | | ????????????????????????????????### ## ## # | | ??????????????????????????# ##### " | | ??????????????????????????# " | | ??????????????????????????####### " | | ????????????????????????????????# " | | ???????????????????????????????#### # ^ ## # | +----------------------------------------------------+ Best States ------------- Heat Dissipation 28 Energy Generation 14 Energy Capacity 280 Matter Stores 300 Matter Capacity 300 Sight Range 16 Terrain Scan Density 10 Armor Coverage 225 Evasion (%) 55 Item Schematics ----------------- None Robot Schematics ------------------ None Fabricated ------------ Nothing Repaired ---------- Flak Cannon | 34% | -9/Materials Alien Tech Used ----------------- None Achievements -------------- A New Friend More Dakka Please Challenges ------------ None Game ------ Seed FrostMakeshiftCarapace Manual? 0 Play Time 00:28:12 Cumulative 7.6 hours Start 2025.09.23 @ 14:53:18 End 2025.09.24 @ 16:13:34 Sessions 2 Manual Loads 0 Difficulty Rogue Special Mode None Game No. 21 Rogue 7 Adventurer 14 Explorer 0 Win Type - Total 0 Types 0/0/0/0/0/0/0/0/0/0 Lore% 4 Gallery% 13 Achievement% 19 Wizard Run 0 Options --------- Layout 1 ASCII 0 Keyboard 1 Movement Numpad Keybinds 0 Fullscreen 1 Font 24/Smallcaps Map View 50x35 Zoom Use 0% Tactical HUD 1 Map Filters NONE Filters NONE Steam 0 RUN: 6b3323e1-a46e-47d9-bddb-dae19519016d